[Event "European Online Club-ch-D 2021"]
[Site "Online"]
[Date "2021.03.27"]
[Round "6.18"]
[White "Pelletier, Yannick"]
[Black "Parligras, Mircea-Emilian"]
[Result "1/2-1/2"]
[ECO "E13"]
[WhiteElo "2581"]
[BlackElo "2591"]
[Annotator "ChessBase"]
[PlyCount "55"]
[EventDate "2021.03.27"]
[EventType "team-tourn"]
[EventCountry "NET"]
[SourceTitle "playchess.com"]
[Source "ChessBase"]
[SourceQuality "1"]
[TimeControl "900+5"]

1. d4 {[%emt 0:00:00]} Nf6 {[%emt 0:00:03]} 2. c4 {[%emt 0:00:04]} e6 {[%emt 0:00:01]} 3. Nc3 {[%emt 0:00:40]} Bb4 {[%emt 0:00:03]} 4. Nf3 {[%emt 0:00:10]} b6 {[%emt 0:00:13]} 5. Bg5 {[%emt 0:00:13]} h6 {[%emt 0:00:06]} 6. Bh4 {[%emt 0:00:04]} g5 {[%emt 0:00:08]} 7. Bg3 {[%emt 0:00:02]} Ne4 {[%emt 0:00:02]} 8. Qc2 {[%emt 0:00:23]} Bb7 {[%emt 0:00:03]} 9. O-O-O {[%emt 0:00:58]} Bxc3 {[%emt 0:00:15]} 10. bxc3 {[%emt 0:00:00]} Qe7 {[%emt 0:00:14]} 11. Kb2 {[%emt 0:00:57]} d6 {[%emt 0:00:25]} 12. Nd2 {[%emt 0:00:17]} f5 {[%emt 0:00:20]} 13. f3 {[%emt 0:00:14]} Nxg3 {[%emt 0:00:07]} 14. hxg3 {[%emt 0:00:01]} Nd7 {[%emt 0:00:04]} 15. g4 {[%emt 0:01:25]} Qf7 {[%emt 0:02:16]} 16. gxf5 {[%emt 0:00:11]} exf5 {[%emt 0:00:01]} 17. e3 {[%emt 0:00:09]} O-O-O {[%emt 0:00:05]} 18. Bd3 {[%emt 0:00:05]} f4 {[%emt 0:00:15]} 19. Rde1 {[%emt 0:01:32]} fxe3 {[%emt 0:01:47]} 20. Rxe3 {[%emt 0:00:03]} Nf6 {[%emt 0:00:23]} 21. Bg6 {[%emt 0:01:18]} Qf8 {[%emt 0:00:20]} 22. Qf5+ {[%emt 0:01:07]} Kb8 {[%emt 0:00:14]} 23. Re6 {[%emt 0:00:15]} Nd7 {[%emt 0:00:47]} 24. Ne4 {[%emt 0:02:52]} Ba6 {[%emt 0:01:43]} 25. Qd5 {[%emt 0:00:51]} Bb7 {[%emt 0:02:18]} 26. Qf5 {[%emt 0:00:02]} Ba6 {[%emt 0:00:03]} 27. Qd5 {[%emt 0:00:49]} Bb7 {[%emt 0:00:02]} 28. Qf5 {[%emt 0:00:02]} 1/2-1/2

[Event "European Online Club-ch-D 2021"]
[Site "Online"]
[Date "2021.03.27"]
[Round "6.19"]
[White "Toma, Radu-Cristian"]
[Black "Petkidis, Anthony"]
[Result "0-1"]
[ECO "A30"]
[WhiteElo "2385"]
[BlackElo "2401"]
[Annotator "NA"]
[PlyCount "74"]
[EventDate "2021.03.27"]
[EventType "team-tourn"]
[EventCountry "NET"]
[SourceTitle "playchess.com"]
[Source "ChessBase"]
[SourceQuality "1"]
[TimeControl "900+5"]

1. Nf3 {[%emt 0:00:00]} c5 {[%emt 0:00:07]} 2. c4 {[%emt 0:00:05]} Nf6 {[%emt 0:00:06]} 3. Nc3 {[%emt 0:00:15]} e6 {[%emt 0:00:08]} 4. g3 {[%emt 0:00:04]} b6 {[%emt 0:00:02]} 5. Bg2 {[%emt 0:00:02]} Bb7 {[%emt 0:00:01]} 6. O-O {[%emt 0:00:02]} Be7 {[%emt 0:00:03]} 7. d4 {[%emt 0:00:02]} cxd4 {[%emt 0:00:02]} 8. Qxd4 {[%emt 0:00:02]} d6 {[%emt 0:00:20]} 9. Rd1 {[%emt 0:00:05]} O-O {[%emt 0:00:09]} 10. b3 {[%emt 0:00:34]} Nbd7 {[%emt 0:00:46]} 11. Ba3 {[%emt 0:01:03]} Nc5 {[%emt 0:01:40]} 12. Rac1 {[%emt 0:00:07]} a6 {[%emt 0:00:14]} 13. Bb2 {[%emt 0:02:09]} Qc7 {[%emt 0:00:09]} 14. b4 {[%emt 0:00:48]} Ncd7 {[%emt 0:00:02]} 15. a3 {[%emt 0:00:04]} Rac8 {[%emt 0:00:04]} 16. Nb1 {[%emt 0:00:04]} Rfe8 {[%emt 0:00:17]} 17. Nbd2 {[%emt 0:00:35]} Qb8 {[%emt 0:00:04]} 18. Ng5 {[%emt 0:00:52]} Bxg2 {[%emt 0:00:04]} 19. Kxg2 {[%emt 0:00:03]} Red8 {[%emt 0:02:13]} 20. f3 {[%emt 0:00:31]} b5 {[%emt 0:00:22]} 21. Nge4 {[%emt 0:01:25]} bxc4 {[%emt 0:01:59]} 22. Rxc4 {[%emt 0:00:03]} d5 {[%emt 0:01:49]} 23. Rxc8 {[%emt 0:00:04]} Rxc8 {[%emt 0:00:02]} 24. Nc3 {[%emt 0:00:19]} Ne5 {[%emt 0:02:32]} 25. e4 {[%emt 0:00:48]} Nc6 {[%emt 0:00:45]} 26. Qf2 {[%emt 0:00:15]} d4 {[%emt 0:00:07]} 27. Ne2 {[%emt 0:00:17]} e5 {[%emt 0:00:03]} 28. Rb1 {[%emt 0:00:21]} Qb5 {[%emt 0:00:09]} 29. Qf1 {[%emt 0:01:29]} Qd3 {[%emt 0:00:17]} 30. Qe1 {[%emt 0:00:46]} a5 {[%emt 0:00:09]} 31. b5 {[%emt 0:00:04]} Nb4 {[%emt 0:02:07]} 32. axb4 {[%emt 0:02:10]} Bxb4 {[%emt 0:00:00]} 33. Rd1 {[%emt 0:00:27]} Rc2 {[%emt 0:00:05]} 34. Bc1 {[%emt 0:00:01]} Qxb5 {[%emt 0:00:06]} 35. Qf1 {[%emt 0:00:22]} a4 {[%emt 0:00:06]} 36. f4 {[%emt 0:00:13]} Ng4 {[%emt 0:00:05]} 37. Nf3 {[%emt 0:00:12]} Rxe2+ {[%emt 0:00:05]} 0-1

[Event "European Online Club-ch-D 2021"]
[Site "Online"]
[Date "2021.03.27"]
[Round "6.20"]
[White "Fischer, Daniel"]
[Black "Gavrilescu, David"]
[Result "0-1"]
[ECO "C07"]
[WhiteElo "2276"]
[BlackElo "2476"]
[Annotator "ChessBase"]
[PlyCount "68"]
[EventDate "2021.03.27"]
[EventType "team-tourn"]
[EventCountry "NET"]
[SourceTitle "playchess.com"]
[Source "ChessBase"]
[SourceQuality "1"]
[TimeControl "900+5"]

1. e4 {[%emt 0:00:00]} e6 {[%emt 0:00:07]} 2. d4 {[%emt 0:00:03]} d5 {[%emt 0:00:01]} 3. Nd2 {[%emt 0:00:01]} c5 {[%emt 0:00:02]} 4. Ngf3 {[%emt 0:00:02]} cxd4 {[%emt 0:00:01]} 5. Nxd4 {[%emt 0:00:00]} Nc6 {[%emt 0:00:01]} 6. Bb5 {[%emt 0:00:02]} Bd7 {[%emt 0:00:02]} 7. Nxc6 {[%emt 0:00:02]} bxc6 {[%emt 0:00:01]} 8. Bd3 {[%emt 0:00:02]} Qc7 {[%emt 0:00:09]} 9. Qe2 {[%emt 0:00:10]} Ne7 {[%emt 0:00:02]} 10. O-O {[%emt 0:00:05]} Ng6 {[%emt 0:00:05]} 11. Nf3 {[%emt 0:00:18]} Bd6 {[%emt 0:00:25]} 12. c4 {[%emt 0:00:56]} d4 {[%emt 0:01:49]} 13. Re1 {[%emt 0:01:30]} e5 {[%emt 0:00:09]} 14. h3 {[%emt 0:00:09]} O-O {[%emt 0:00:06]} 15. a3 {[%emt 0:01:28]} a5 {[%emt 0:00:04]} 16. b3 {[%emt 0:00:07]} Rab8 {[%emt 0:00:10]} 17. Bc2 {[%emt 0:00:15]} c5 {[%emt 0:04:08]} 18. Nd2 {[%emt 0:04:07]} Nf4 {[%emt 0:00:49]} 19. Qf3 {[%emt 0:00:02]} Bc6 {[%emt 0:00:11]} 20. g4 {[%emt 0:03:11]} f5 {[%emt 0:00:30]} 21. gxf5 {[%emt 0:00:26]} Rxf5 {[%emt 0:00:03]} 22. Nf1 {[%emt 0:00:55]} Rbf8 {[%emt 0:01:39]} 23. Bxf4 {[%emt 0:00:50]} Rxf4 {[%emt 0:00:21]} 24. Qg2 {[%emt 0:00:03]} Qf7 {[%emt 0:00:27]} 25. Re2 {[%emt 0:00:12]} a4 {[%emt 0:00:04]} 26. bxa4 {[%emt 0:00:19]} Qxc4 {[%emt 0:00:10]} 27. Rd2 {[%emt 0:00:30]} Qc3 {[%emt 0:00:21]} 28. Rad1 {[%emt 0:00:35]} c4 {[%emt 0:00:15]} 29. Ng3 {[%emt 0:00:05]} Qxa3 {[%emt 0:01:07]} 30. Nh5 {[%emt 0:00:29]} R4f7 {[%emt 0:00:02]} 31. f4 {[%emt 0:00:21]} d3 {[%emt 0:00:13]} 32. Bb1 {[%emt 0:00:10]} exf4 {[%emt 0:00:06]} 33. Kh1 {[%emt 0:00:07]} Qc5 {[%emt 0:00:07]} 34. Qg4 {[%emt 0:00:07]} Bxe4+ {[%emt 0:00:03]} 0-1

[Event "European Online Club-ch-D 2021"]
[Site "Online"]
[Date "2021.03.27"]
[Round "7.1"]
[White "Bauer, Christian"]
[Black "Eren, Ataberk"]
[Result "0-1"]
[ECO "C77"]
[WhiteElo "2639"]
[BlackElo "2306"]
[Annotator "ChessBase"]
[PlyCount "100"]
[EventDate "2021.03.27"]
[EventType "team-tourn"]
[EventCountry "NET"]
[SourceTitle "playchess.com"]
[Source "ChessBase"]
[SourceQuality "1"]
[TimeControl "900+5"]

1. e4 {[%emt 0:00:00]} e5 {[%emt 0:00:02]} 2. Nf3 {[%emt 0:00:04]} Nc6 {[%emt 0:00:02]} 3. Bb5 {[%emt 0:00:10]} a6 {[%emt 0:00:01]} 4. Ba4 {[%emt 0:00:02]} Nf6 {[%emt 0:00:02]} 5. Nc3 {[%emt 0:00:13]} b5 {[%emt 0:01:52]} 6. Bb3 {[%emt 0:00:02]} Be7 {[%emt 0:00:55]} 7. d3 {[%emt 0:02:08]} d6 {[%emt 0:00:07]} 8. a3 {[%emt 0:00:16]} O-O {[%emt 0:01:16]} 9. O-O {[%emt 0:00:38]} Na5 {[%emt 0:01:14]} 10. Ba2 {[%emt 0:00:03]} c5 {[%emt 0:00:05]} 11. Bg5 {[%emt 0:00:26]} Bb7 {[%emt 0:00:29]} 12. Bxf6 {[%emt 0:03:29]} Bxf6 {[%emt 0:00:02]} 13. Nd5 {[%emt 0:00:00]} g6 {[%emt 0:00:07]} 14. g3 {[%emt 0:00:17]} Bg7 {[%emt 0:00:07]} 15. h4 {[%emt 0:00:03]} Nc6 {[%emt 0:00:06]} 16. h5 {[%emt 0:00:31]} Ne7 {[%emt 0:00:11]} 17. hxg6 {[%emt 0:00:49]} hxg6 {[%emt 0:00:04]} 18. Ne3 {[%emt 0:00:06]} d5 {[%emt 0:00:25]} 19. Qe2 {[%emt 0:01:19]} dxe4 {[%emt 0:02:22]} 20. dxe4 {[%emt 0:00:02]} c4 {[%emt 0:01:07]} 21. Ng4 {[%emt 0:00:43]} Nc6 {[%emt 0:00:14]} 22. c3 {[%emt 0:00:20]} Qd7 {[%emt 0:00:31]} 23. Ng5 {[%emt 0:02:25]} Rad8 {[%emt 0:00:25]} 24. Rad1 {[%emt 0:00:22]} Qe7 {[%emt 0:00:05]} 25. Nf3 {[%emt 0:00:15]} Qe6 {[%emt 0:00:10]} 26. Ne3 {[%emt 0:00:16]} Ne7 {[%emt 0:00:10]} 27. Ng5 {[%emt 0:00:08]} Qf6 {[%emt 0:00:13]} 28. Qg4 {[%emt 0:00:02]} Bh6 {[%emt 0:00:19]} 29. Rxd8 {[%emt 0:00:14]} Rxd8 {[%emt 0:00:13]} 30. f4 {[%emt 0:00:01]} Qb6 {[%emt 0:00:58]} 31. Re1 {[%emt 0:00:39]} Rd3 {[%emt 0:00:21]} 32. Kf2 {[%emt 0:00:03]} f6 {[%emt 0:00:43]} 33. Qe6+ {[%emt 0:00:13]} Qxe6 {[%emt 0:00:06]} 34. Nxe6 {[%emt 0:00:02]} exf4 {[%emt 0:00:33]} 35. gxf4 {[%emt 0:00:04]} Kf7 {[%emt 0:01:41]} 36. Nc5 {[%emt 0:00:18]} Rd2+ {[%emt 0:00:04]} 37. Kf3 {[%emt 0:00:35]} Bc8 {[%emt 0:00:05]} 38. Rh1 {[%emt 0:00:11]} Kg7 {[%emt 0:00:14]} 39. Bxc4 {[%emt 0:00:19]} bxc4 {[%emt 0:00:04]} 40. Nxc4 {[%emt 0:00:02]} Rd8 {[%emt 0:00:14]} 41. a4 {[%emt 0:00:06]} Nc6 {[%emt 0:00:06]} 42. b4 {[%emt 0:00:03]} g5 {[%emt 0:00:08]} 43. f5 {[%emt 0:00:07]} Na7 {[%emt 0:00:12]} 44. Nb6 {[%emt 0:00:06]} g4+ {[%emt 0:00:03]} 45. Kxg4 {[%emt 0:00:03]} Bd2 {[%emt 0:00:02]} 46. Nd5 {[%emt 0:00:25]} Nc6 {[%emt 0:00:04]} 47. Rg1 {[%emt 0:00:05]} Ne5+ {[%emt 0:00:04]} 48. Kh5+ {[%emt 0:00:03]} Kf7 {[%emt 0:00:04]} 49. Kh4 {[%emt 0:00:03]} Nf3+ {[%emt 0:00:03]} 50. Kg3 {[%emt 0:00:02]} Nxg1 {[%emt 0:00:01]} 0-1

[Event "European Online Club-ch-D 2021"]
[Site "Online"]
[Date "2021.03.27"]
[Round "7.2"]
[White "Erdogan, Anil Berk"]
[Black "Pelletier, Yannick"]
[Result "1-0"]
[ECO "B13"]
[WhiteElo "2155"]
[BlackElo "2581"]
[Annotator "ChessBase"]
[PlyCount "71"]
[EventDate "2021.03.27"]
[EventType "team-tourn"]
[EventCountry "NET"]
[SourceTitle "playchess.com"]
[Source "ChessBase"]
[SourceQuality "1"]
[TimeControl "900+5"]

1. e4 {[%emt 0:00:00]} c6 {[%emt 0:00:02]} 2. d4 {[%emt 0:00:04]} d5 {[%emt 0:00:01]} 3. exd5 {[%emt 0:00:01]} cxd5 {[%emt 0:00:00]} 4. c4 {[%emt 0:00:01]} Nf6 {[%emt 0:00:02]} 5. Nc3 {[%emt 0:00:02]} Nc6 {[%emt 0:00:02]} 6. Bg5 {[%emt 0:00:01]} Be6 {[%emt 0:00:02]} 7. Be2 {[%emt 0:00:02]} Qa5 {[%emt 0:00:11]} 8. Bf3 {[%emt 0:00:47]} Rd8 {[%emt 0:00:03]} 9. Nge2 {[%emt 0:01:29]} dxc4 {[%emt 0:02:29]} 10. Bxf6 {[%emt 0:00:52]} exf6 {[%emt 0:00:05]} 11. O-O {[%emt 0:00:52]} Bd6 {[%emt 0:03:56]} 12. d5 {[%emt 0:01:32]} Ne5 {[%emt 0:01:43]} 13. dxe6 {[%emt 0:02:03]} Nxf3+ {[%emt 0:00:04]} 14. gxf3 {[%emt 0:00:22]} Bxh2+ {[%emt 0:00:15]} 15. Kxh2 {[%emt 0:00:05]} Rxd1 {[%emt 0:00:28]} 16. exf7+ {[%emt 0:00:26]} Kxf7 {[%emt 0:00:00]} 17. Raxd1 {[%emt 0:00:06]} Rd8 {[%emt 0:00:25]} 18. Ng3 {[%emt 0:00:48]} a6 {[%emt 0:00:56]} 19. Rxd8 {[%emt 0:02:01]} Qxd8 {[%emt 0:00:00]} 20. Rd1 {[%emt 0:00:02]} Qc7 {[%emt 0:00:14]} 21. Kg2 {[%emt 0:01:10]} b5 {[%emt 0:00:08]} 22. a4 {[%emt 0:01:03]} b4 {[%emt 0:00:46]} 23. Nd5 {[%emt 0:00:01]} Qc6 {[%emt 0:01:38]} 24. Ne3 {[%emt 0:01:44]} c3 {[%emt 0:00:13]} 25. bxc3 {[%emt 0:00:10]} b3 {[%emt 0:00:02]} 26. Ne4 {[%emt 0:00:41]} Qxa4 {[%emt 0:00:33]} 27. Nd6+ {[%emt 0:00:09]} Kf8 {[%emt 0:01:34]} 28. Nec4 {[%emt 0:00:22]} Qa2 {[%emt 0:01:16]} 29. Re1 {[%emt 0:00:11]} g6 {[%emt 0:00:04]} 30. Re8+ {[%emt 0:00:06]} Kg7 {[%emt 0:00:01]} 31. Re7+ {[%emt 0:00:02]} Kh6 {[%emt 0:00:05]} 32. Rb7 {[%emt 0:00:11]} a5 {[%emt 0:00:11]} 33. Ne3 {[%emt 0:00:12]} b2 {[%emt 0:00:07]} 34. Ng4+ {[%emt 0:00:01]} Kg5 {[%emt 0:00:05]} 35. Kg3 {[%emt 0:00:02]} Qd5 {[%emt 0:00:07]} 36. f4+ {[%emt 0:00:02]} 1-0

[Event "European Online Club-ch-D 2021"]
[Site "Online"]
[Date "2021.03.27"]
[Round "7.3"]
[White "Fischer, Daniel"]
[Black "Korkmaz, Necmettin"]
[Result "0-1"]
[ECO "C06"]
[WhiteElo "2276"]
[BlackElo "2101"]
[Annotator "NA"]
[PlyCount "72"]
[EventDate "2021.03.27"]
[EventType "team-tourn"]
[EventCountry "NET"]
[SourceTitle "playchess.com"]
[Source "ChessBase"]
[SourceQuality "1"]
[TimeControl "900+5"]

1. e4 {[%emt 0:00:00]} e6 {[%emt 0:00:09]} 2. d4 {[%emt 0:00:02]} d5 {[%emt 0:00:02]} 3. Nd2 {[%emt 0:00:02]} Nf6 {[%emt 0:00:04]} 4. e5 {[%emt 0:00:01]} Nfd7 {[%emt 0:00:02]} 5. Bd3 {[%emt 0:00:01]} c5 {[%emt 0:00:01]} 6. c3 {[%emt 0:00:02]} Nc6 {[%emt 0:00:01]} 7. Ne2 {[%emt 0:00:02]} cxd4 {[%emt 0:00:02]} 8. cxd4 {[%emt 0:00:00]} Qb6 {[%emt 0:00:15]} 9. Nf3 {[%emt 0:00:07]} f6 {[%emt 0:00:03]} 10. exf6 {[%emt 0:00:08]} Nxf6 {[%emt 0:00:01]} 11. O-O {[%emt 0:00:03]} Bd6 {[%emt 0:00:02]} 12. Bf4 {[%emt 0:01:01]} Bxf4 {[%emt 0:00:10]} 13. Nxf4 {[%emt 0:00:00]} Qxb2 {[%emt 0:00:19]} 14. Re1 {[%emt 0:03:21]} O-O {[%emt 0:00:08]} 15. Re2 {[%emt 0:00:36]} Qa3 {[%emt 0:00:58]} 16. Nxe6 {[%emt 0:00:51]} Bxe6 {[%emt 0:00:06]} 17. Rxe6 {[%emt 0:00:01]} Rae8 {[%emt 0:00:07]} 18. Qe2 {[%emt 0:00:32]} Re7 {[%emt 0:03:27]} 19. Qe3 {[%emt 0:01:06]} Kh8 {[%emt 0:00:36]} 20. Rxe7 {[%emt 0:02:00]} Nxe7 {[%emt 0:00:28]} 21. Ne5 {[%emt 0:00:19]} Qd6 {[%emt 0:01:08]} 22. Re1 {[%emt 0:00:40]} Nc6 {[%emt 0:00:25]} 23. Qh3 {[%emt 0:00:57]} Kg8 {[%emt 0:01:21]} 24. Ng4 {[%emt 0:02:22]} Ne4 {[%emt 0:00:56]} 25. f3 {[%emt 0:00:43]} Qb4 {[%emt 0:00:11]} 26. Rd1 {[%emt 0:00:08]} Qxd4+ {[%emt 0:00:35]} 27. Kh1 {[%emt 0:00:07]} Ne5 {[%emt 0:01:28]} 28. fxe4 {[%emt 0:00:56]} Nxd3 {[%emt 0:00:07]} 29. Qg3 {[%emt 0:00:45]} h5 {[%emt 0:00:53]} 30. h3 {[%emt 0:00:23]} dxe4 {[%emt 0:00:08]} 31. Nh6+ {[%emt 0:00:13]} Kh7 {[%emt 0:00:05]} 32. Rb1 {[%emt 0:00:04]} Kxh6 {[%emt 0:00:15]} 33. h4 {[%emt 0:00:06]} Nf2+ {[%emt 0:00:14]} 34. Kh2 {[%emt 0:00:02]} Ng4+ {[%emt 0:00:01]} 35. Kh1 {[%emt 0:00:06]} Rf7 {[%emt 0:00:08]} 36. Re1 {[%emt 0:00:06]} e3 {[%emt 0:00:04]} 0-1

[Event "European Online Club-ch-D 2021"]
[Site "Online"]
[Date "2021.03.27"]
[Round "7.5"]
[White "Gadimbayli, Abdulla"]
[Black "Lupulescu, Constantin"]
[Result "1/2-1/2"]
[ECO "B62"]
[WhiteElo "2470"]
[BlackElo "2656"]
[Annotator "ChessBase"]
[PlyCount "89"]
[EventDate "2021.03.27"]
[EventType "team-tourn"]
[EventCountry "NET"]
[SourceTitle "playchess.com"]
[Source "ChessBase"]
[SourceQuality "1"]
[TimeControl "900+5"]

1. e4 {[%emt 0:00:00]} c5 {[%emt 0:00:02]} 2. Nf3 {[%emt 0:00:03]} d6 {[%emt 0:00:01]} 3. d4 {[%emt 0:00:01]} cxd4 {[%emt 0:00:02]} 4. Nxd4 {[%emt 0:00:01]} Nf6 {[%emt 0:00:01]} 5. Nc3 {[%emt 0:00:01]} Nc6 {[%emt 0:00:02]} 6. Bb5 {[%emt 0:00:05]} Bd7 {[%emt 0:00:02]} 7. Bg5 {[%emt 0:00:02]} e6 {[%emt 0:00:01]} 8. O-O {[%emt 0:00:01]} Be7 {[%emt 0:00:04]} 9. Bxc6 {[%emt 0:00:01]} bxc6 {[%emt 0:00:36]} 10. e5 {[%emt 0:00:03]} dxe5 {[%emt 0:00:00]} 11. Nf3 {[%emt 0:00:01]} Nd5 {[%emt 0:00:03]} 12. Bxe7 {[%emt 0:00:02]} Qxe7 {[%emt 0:00:40]} 13. Nxe5 {[%emt 0:00:05]} O-O {[%emt 0:02:38]} 14. Ne4 {[%emt 0:00:23]} Rfd8 {[%emt 0:00:26]} 15. c4 {[%emt 0:00:32]} Be8 {[%emt 0:00:36]} 16. Qe2 {[%emt 0:01:53]} f6 {[%emt 0:02:03]} 17. cxd5 {[%emt 0:05:51]} cxd5 {[%emt 0:00:00]} 18. Nd2 {[%emt 0:00:45]} fxe5 {[%emt 0:00:04]} 19. Qxe5 {[%emt 0:00:02]} Qf6 {[%emt 0:00:13]} 20. Rfe1 {[%emt 0:00:20]} Qxe5 {[%emt 0:00:28]} 21. Rxe5 {[%emt 0:00:03]} Rd6 {[%emt 0:01:21]} 22. Rc1 {[%emt 0:00:15]} Rb8 {[%emt 0:00:33]} 23. b3 {[%emt 0:01:24]} a5 {[%emt 0:00:29]} 24. h3 {[%emt 0:00:47]} Kf7 {[%emt 0:00:24]} 25. Rc7+ {[%emt 0:00:51]} Kf6 {[%emt 0:03:29]} 26. f4 {[%emt 0:00:33]} a4 {[%emt 0:00:26]} 27. Kf2 {[%emt 0:01:31]} Rc6 {[%emt 0:00:14]} 28. Rxc6 {[%emt 0:00:55]} Bxc6 {[%emt 0:00:00]} 29. g4 {[%emt 0:00:01]} Rb4 {[%emt 0:00:11]} 30. Ke3 {[%emt 0:00:11]} axb3 {[%emt 0:00:18]} 31. axb3 {[%emt 0:00:17]} h6 {[%emt 0:00:03]} 32. h4 {[%emt 0:00:03]} Bb7 {[%emt 0:00:37]} 33. Kf3 {[%emt 0:00:11]} d4+ {[%emt 0:00:09]} 34. Ke2 {[%emt 0:00:05]} Bd5 {[%emt 0:00:02]} 35. Kd3 {[%emt 0:00:18]} Bxb3 {[%emt 0:00:08]} 36. Nxb3 {[%emt 0:00:15]} Rxb3+ {[%emt 0:00:00]} 37. Kxd4 {[%emt 0:00:01]} Rh3 {[%emt 0:00:49]} 38. g5+ {[%emt 0:00:03]} Kf7 {[%emt 0:00:05]} 39. gxh6 {[%emt 0:00:09]} gxh6 {[%emt 0:00:02]} 40. h5 {[%emt 0:00:04]} Kf6 {[%emt 0:00:09]} 41. Ra5 {[%emt 0:00:05]} Rh1 {[%emt 0:00:16]} 42. Ke4 {[%emt 0:00:01]} Rh3 {[%emt 0:00:02]} 43. Kd4 {[%emt 0:00:02]} Rh1 {[%emt 0:00:02]} 44. Ke4 {[%emt 0:00:02]} Rh3 {[%emt 0:00:02]} 45. Kd4 {[%emt 0:00:01]} 1/2-1/2

[Event "European Online Club-ch-D 2021"]
[Site "Online"]
[Date "2021.03.27"]
[Round "7.6"]
[White "Parligras, Mircea-Emilian"]
[Black "Ibrahimli, Murad"]
[Result "1-0"]
[ECO "D37"]
[WhiteElo "2591"]
[BlackElo "2436"]
[Annotator "ChessBase"]
[PlyCount "65"]
[EventDate "2021.03.27"]
[EventType "team-tourn"]
[EventCountry "NET"]
[SourceTitle "playchess.com"]
[Source "ChessBase"]
[SourceQuality "1"]
[TimeControl "900+5"]

1. d4 {[%emt 0:00:00]} Nf6 {[%emt 0:00:03]} 2. c4 {[%emt 0:00:04]} e6 {[%emt 0:00:02]} 3. Nf3 {[%emt 0:00:02]} d5 {[%emt 0:00:02]} 4. Nc3 {[%emt 0:00:03]} Be7 {[%emt 0:00:02]} 5. Bf4 {[%emt 0:00:03]} O-O {[%emt 0:00:02]} 6. e3 {[%emt 0:00:02]} Nbd7 {[%emt 0:00:27]} 7. a3 {[%emt 0:00:35]} dxc4 {[%emt 0:00:22]} 8. Bxc4 {[%emt 0:00:02]} a6 {[%emt 0:00:01]} 9. O-O {[%emt 0:00:20]} b5 {[%emt 0:00:16]} 10. Be2 {[%emt 0:00:28]} Bb7 {[%emt 0:00:02]} 11. b4 {[%emt 0:00:11]} a5 {[%emt 0:00:35]} 12. Qb3 {[%emt 0:01:20]} c6 {[%emt 0:03:23]} 13. e4 {[%emt 0:00:08]} Nb6 {[%emt 0:00:03]} 14. Rfd1 {[%emt 0:00:30]} axb4 {[%emt 0:01:11]} 15. axb4 {[%emt 0:00:03]} Rxa1 {[%emt 0:00:02]} 16. Rxa1 {[%emt 0:00:03]} Ne8 {[%emt 0:00:01]} 17. Ra7 {[%emt 0:00:40]} Qc8 {[%emt 0:00:14]} 18. Ne5 {[%emt 0:01:34]} Nd6 {[%emt 0:00:24]} 19. Nd3 {[%emt 0:00:06]} Qb8 {[%emt 0:02:21]} 20. Ra2 {[%emt 0:00:10]} Rd8 {[%emt 0:01:29]} 21. Nc5 {[%emt 0:00:05]} Bc8 {[%emt 0:00:01]} 22. Qa3 {[%emt 0:01:34]} Bf8 {[%emt 0:01:57]} 23. h4 {[%emt 0:00:32]} Nbc4 {[%emt 0:00:49]} 24. Qa7 {[%emt 0:01:17]} Qxa7 {[%emt 0:00:31]} 25. Rxa7 {[%emt 0:00:03]} Ne8 {[%emt 0:00:40]} 26. Bxc4 {[%emt 0:00:43]} bxc4 {[%emt 0:00:03]} 27. Ra8 {[%emt 0:00:02]} Bxc5 {[%emt 0:01:33]} 28. bxc5 {[%emt 0:01:05]} Kf8 {[%emt 0:00:02]} 29. Bd6+ {[%emt 0:00:47]} Nxd6 {[%emt 0:00:14]} 30. cxd6 {[%emt 0:00:02]} e5 {[%emt 0:00:07]} 31. d7 {[%emt 0:00:08]} Rxd7 {[%emt 0:00:04]} 32. Rxc8+ {[%emt 0:00:02]} Ke7 {[%emt 0:00:01]} 33. d5 {[%emt 0:00:06]} 1-0

[Event "European Online Club-ch-D 2021"]
[Site "Online"]
[Date "2021.03.27"]
[Round "7.7"]
[White "Babazada, Khazar"]
[Black "Georgescu, Tiberiu-Marian"]
[Result "1-0"]
[ECO "C77"]
[WhiteElo "2409"]
[BlackElo "2479"]
[Annotator "ChessBase"]
[PlyCount "67"]
[EventDate "2021.03.27"]
[EventType "team-tourn"]
[EventCountry "NET"]
[SourceTitle "playchess.com"]
[Source "ChessBase"]
[SourceQuality "1"]
[TimeControl "900+5"]

1. e4 {[%emt 0:00:00]} e5 {[%emt 0:00:05]} 2. Nf3 {[%emt 0:00:02]} Nc6 {[%emt 0:00:09]} 3. Bb5 {[%emt 0:00:02]} a6 {[%emt 0:00:03]} 4. Ba4 {[%emt 0:00:05]} Nf6 {[%emt 0:00:02]} 5. d3 {[%emt 0:00:05]} d6 {[%emt 0:00:51]} 6. O-O {[%emt 0:00:06]} g6 {[%emt 0:00:20]} 7. c3 {[%emt 0:00:06]} Bg7 {[%emt 0:00:04]} 8. Re1 {[%emt 0:00:46]} O-O {[%emt 0:00:02]} 9. h3 {[%emt 0:00:04]} b5 {[%emt 0:00:37]} 10. Bc2 {[%emt 0:00:11]} d5 {[%emt 0:00:43]} 11. Nbd2 {[%emt 0:00:13]} h6 {[%emt 0:00:14]} 12. Nb3 {[%emt 0:00:38]} a5 {[%emt 0:00:31]} 13. a4 {[%emt 0:00:43]} b4 {[%emt 0:00:10]} 14. Be3 {[%emt 0:00:11]} Re8 {[%emt 0:00:38]} 15. Qd2 {[%emt 0:00:19]} Kh7 {[%emt 0:00:02]} 16. Rad1 {[%emt 0:00:22]} Be6 {[%emt 0:00:34]} 17. Qc1 {[%emt 0:00:59]} Nd7 {[%emt 0:01:01]} 18. d4 {[%emt 0:00:31]} bxc3 {[%emt 0:00:23]} 19. bxc3 {[%emt 0:00:03]} dxe4 {[%emt 0:01:10]} 20. d5 {[%emt 0:00:24]} Bxd5 {[%emt 0:04:44]} 21. Rxd5 {[%emt 0:00:03]} exf3 {[%emt 0:00:01]} 22. Nc5 {[%emt 0:00:06]} Ncb8 {[%emt 0:00:48]} 23. Nxd7 {[%emt 0:00:20]} Nxd7 {[%emt 0:00:19]} 24. Red1 {[%emt 0:00:17]} fxg2 {[%emt 0:00:44]} 25. Rxd7 {[%emt 0:00:04]} Qh4 {[%emt 0:00:46]} 26. Kxg2 {[%emt 0:00:10]} Re7 {[%emt 0:00:46]} 27. Rxe7 {[%emt 0:00:19]} Qxe7 {[%emt 0:00:02]} 28. Qd2 {[%emt 0:00:07]} f5 {[%emt 0:00:57]} 29. Qd7 {[%emt 0:00:19]} Qf6 {[%emt 0:00:06]} 30. Qxc7 {[%emt 0:00:38]} f4 {[%emt 0:00:03]} 31. Rd6 {[%emt 0:00:28]} Qg5+ {[%emt 0:00:10]} 32. Kh2 {[%emt 0:00:09]} fxe3 {[%emt 0:00:25]} 33. Rxg6 {[%emt 0:00:07]} Qf4+ {[%emt 0:00:07]} 34. Rg3+ {[%emt 0:00:04]} 1-0